[Event "Early-Titled-Tuesday-Blitz-November-28-2023"]
[Site "Chess.com"]
[Date "2023.11.28"]
[Round "2"]
[White "Niilo1"]
[Black "HajiyevKanan"]
[Result "1-0"]
[WhiteElo "2291"]
[BlackElo "2490"]
[TimeControl "180+1"]
[EndTime "8:18:58 PST"]
[Termination "Niilo1 won by resignation"]

1. e4 {[%clk 0:03:00.9]} 1... c6 {[%clk 0:02:59.3]} 2. d4 {[%clk 0:02:59.6]}
2... d5 {[%clk 0:03:00.2]} 3. Nc3 {[%clk 0:03:00.2]} 3... a6 {[%clk 0:03:00.7]}
4. Nf3 {[%clk 0:02:55.5]} 4... Bg4 {[%clk 0:03:00.4]} 5. h3 {[%clk 0:02:39]}
5... Bh5 {[%clk 0:03:00.4]} 6. g4 {[%clk 0:02:30.4]} 6... Bg6 {[%clk 0:02:59.1]}
7. Bd3 {[%clk 0:02:31.1]} 7... e6 {[%clk 0:02:59.1]} 8. Bf4 {[%clk 0:02:28.8]}
8... Bb4 {[%clk 0:02:57]} 9. Qe2 {[%clk 0:02:26.3]} 9... Nf6 {[%clk 0:02:56.6]}
10. Bg5 {[%clk 0:02:14.1]} 10... dxe4 {[%clk 0:02:42]} 11. Bxf6 {[%clk
0:01:37.6]} 11... exd3 {[%clk 0:02:39.9]} 12. Bxd8 {[%clk 0:01:38.2]} 12... dxe2
{[%clk 0:02:39.7]} 13. Bc7 {[%clk 0:01:35.3]} 13... Bxc2 {[%clk 0:02:26]} 14.
Kxe2 {[%clk 0:01:35.6]} 14... Nd7 {[%clk 0:02:23.1]} 15. Rac1 {[%clk 0:01:31.7]}
15... Bg6 {[%clk 0:02:21.1]} 16. a3 {[%clk 0:01:27.1]} 16... Be7 {[%clk
0:02:17.1]} 17. Na4 {[%clk 0:01:24.9]} 17... Rc8 {[%clk 0:02:14.7]} 18. Bg3
{[%clk 0:01:23.2]} 18... h5 {[%clk 0:02:08.2]} 19. Rhd1 {[%clk 0:01:20.8]} 19...
O-O {[%clk 0:01:54.6]} 20. Ne5 {[%clk 0:01:00.2]} 20... Nxe5 {[%clk 0:01:43]}
21. Bxe5 {[%clk 0:01:01.1]} 21... Rcd8 {[%clk 0:01:30.3]} 22. Nc5 {[%clk
0:00:57.6]} 22... Bxc5 {[%clk 0:01:24.2]} 23. dxc5 {[%clk 0:00:58.5]} 23... Rd5
{[%clk 0:01:19.9]} 24. Bd6 {[%clk 0:00:55.8]} 24... Re8 {[%clk 0:01:19.8]} 25.
Rc3 {[%clk 0:00:53.1]} 25... f6 {[%clk 0:01:19]} 26. Rb3 {[%clk 0:00:51.5]}
26... b5 {[%clk 0:01:16.8]} 27. cxb6 {[%clk 0:00:47.2]} 27... Bc2 {[%clk
0:01:10.5]} 28. Rxd5 {[%clk 0:00:38.5]} 28... exd5+ {[%clk 0:01:10.6]} 29. Re3
{[%clk 0:00:37.5]} 29... Be4 {[%clk 0:00:47.3]} 30. b7 {[%clk 0:00:34.8]} 30...
d4 {[%clk 0:00:38.1]} 31. Rg3 {[%clk 0:00:17.3]} 31... h4 {[%clk 0:00:25.1]} 32.
Rg1 {[%clk 0:00:16.8]} 32... c5 {[%clk 0:00:11.4]} 33. b8=Q {[%clk 0:00:16.8]}
33... Rxb8 {[%clk 0:00:12.1]} 34. Bxb8 {[%clk 0:00:17.7]} 34... c4 {[%clk
0:00:12.9]} 35. Rc1 {[%clk 0:00:16.2]} 35... Bd5 {[%clk 0:00:12.2]} 36. Ba7
{[%clk 0:00:14.2]} 36... d3+ {[%clk 0:00:12.8]} 37. Ke3 {[%clk 0:00:14.8]} 37...
Kf7 {[%clk 0:00:13.3]} 38. b3 {[%clk 0:00:12.3]} 38... cxb3 {[%clk 0:00:12.4]}
39. Kxd3 {[%clk 0:00:12.1]} 39... a5 {[%clk 0:00:12.8]} 40. a4 {[%clk
0:00:09.6]} 40... g6 {[%clk 0:00:10.6]} 41. Bb6 {[%clk 0:00:09.7]} 41... f5
{[%clk 0:00:10.9]} 42. Bxa5 {[%clk 0:00:06.8]} 42... b2 {[%clk 0:00:10]} 43.
Rc7+ {[%clk 0:00:07]} 43... Ke6 {[%clk 0:00:10.4]} 44. Kc2 {[%clk 0:00:07.3]}
44... fxg4 {[%clk 0:00:09.4]} 45. hxg4 {[%clk 0:00:06.8]} 45... h3 {[%clk
0:00:10.3]} 46. Rh7 {[%clk 0:00:05.4]} 46... Bg2 {[%clk 0:00:09.7]} 47. Kxb2
{[%clk 0:00:05.4]} 47... Ke5 {[%clk 0:00:10.3]} 48. Bc7+ {[%clk 0:00:05.3]}
48... Ke4 {[%clk 0:00:10.7]} 49. a5 {[%clk 0:00:05.5]} 49... Kf3 {[%clk
0:00:11.4]} 50. Bg3 {[%clk 0:00:05.1]} 50... Kxg4 {[%clk 0:00:11.4]} 51. a6
{[%clk 0:00:05.5]} 51... g5 {[%clk 0:00:12.1]} 52. a7 {[%clk 0:00:05.9]} 52...
Ba8 {[%clk 0:00:11]} 53. Rh8 {[%clk 0:00:04.7]} 53... Bg2 {[%clk 0:00:11.3]} 54.
a8=Q {[%clk 0:00:04.7]} 54... Bxa8 {[%clk 0:00:11.9]} 55. Rxa8 {[%clk
0:00:04.8]} 55... Kf3 {[%clk 0:00:12.8]} 56. Rh8 {[%clk 0:00:05.3]} 56... Kg2
{[%clk 0:00:13.7]} 57. Kc3 {[%clk 0:00:05.7]} 57... g4 {[%clk 0:00:14.3]} 58.
Kd4 {[%clk 0:00:06.3]} 58... h2 {[%clk 0:00:14.8]} 59. Rxh2+ {[%clk 0:00:05.7]}
59... Kg1 {[%clk 0:00:15.3]} 60. Ke5 {[%clk 0:00:06.6]} 60... Kf1 {[%clk
0:00:15.3]} 61. Kf4 {[%clk 0:00:07.4]} 61... Ke2 {[%clk 0:00:16.1]} 62. Kxg4
{[%clk 0:00:08.3]} 62... Kd3 {[%clk 0:00:16.7]} 63. f4 {[%clk 0:00:09]} 63...
Ke4 {[%clk 0:00:17.6]} 64. f5 {[%clk 0:00:09.9]} 64... Kd5 {[%clk 0:00:18.1]}
65. Kg5 {[%clk 0:00:10.8]} 1-0

[Event "Early-Titled-Tuesday-Blitz-November-28-2023"]
[Site "Chess.com"]
[Date "2023.11.28"]
[Round "2"]
[White "jk13"]
[Black "dropstoneDP"]
[Result "1/2-1/2"]
[WhiteElo "2621"]
[BlackElo "2968"]
[TimeControl "180+1"]
[EndTime "8:19:14 PST"]
[Termination "Game drawn - insufficient material"]

1. e4 {[%clk 0:02:58.1]} 1... e5 {[%clk 0:02:59.7]} 2. Nf3 {[%clk 0:02:57.8]}
2... Nf6 {[%clk 0:03:00.3]} 3. Nxe5 {[%clk 0:02:53.1]} 3... d6 {[%clk
0:03:00.5]} 4. Nf3 {[%clk 0:02:53.2]} 4... Nxe4 {[%clk 0:03:01.1]} 5. Qe2 {[%clk
0:02:52.6]} 5... Qe7 {[%clk 0:03:00.9]} 6. d3 {[%clk 0:02:51.6]} 6... Nf6 {[%clk
0:03:00.7]} 7. Qxe7+ {[%clk 0:02:52.3]} 7... Bxe7 {[%clk 0:03:00.4]} 8. d4
{[%clk 0:02:52.8]} 8... Bf5 {[%clk 0:02:59.8]} 9. c3 {[%clk 0:02:49.1]} 9... O-O
{[%clk 0:03:00.4]} 10. Bg5 {[%clk 0:02:48]} 10... Re8 {[%clk 0:02:59.8]} 11.
Nbd2 {[%clk 0:02:47.6]} 11... Bf8+ {[%clk 0:02:59.1]} 12. Kd1 {[%clk 0:02:41.4]}
12... Nbd7 {[%clk 0:02:59]} 13. Bc4 {[%clk 0:02:36.6]} 13... h6 {[%clk
0:02:58.5]} 14. Be3 {[%clk 0:02:30.8]} 14... Ng4 {[%clk 0:02:58]} 15. Re1 {[%clk
0:02:29.8]} 15... a6 {[%clk 0:02:56.6]} 16. h3 {[%clk 0:02:24.5]} 16... Nxe3+
{[%clk 0:02:56.8]} 17. Rxe3 {[%clk 0:02:19.8]} 17... Nf6 {[%clk 0:02:57.7]} 18.
Ke2 {[%clk 0:02:10]} 18... b5 {[%clk 0:02:56.8]} 19. Bb3 {[%clk 0:02:09.9]}
19... c5 {[%clk 0:02:56]} 20. Rc1 {[%clk 0:01:28.8]} 20... c4 {[%clk 0:02:55.4]}
21. Bc2 {[%clk 0:01:29.3]} 21... Bxc2 {[%clk 0:02:45.6]} 22. Rxc2 {[%clk
0:01:29.2]} 22... Nd5 {[%clk 0:02:46]} 23. Rxe8 {[%clk 0:01:25.4]} 23... Rxe8+
{[%clk 0:02:46.9]} 24. Kf1 {[%clk 0:01:21.9]} 24... Nf4 {[%clk 0:02:47.8]} 25.
Ne1 {[%clk 0:01:17]} 25... d5 {[%clk 0:02:46]} 26. Ndf3 {[%clk 0:01:12.8]} 26...
Bd6 {[%clk 0:02:44.6]} 27. h4 {[%clk 0:01:12.7]} 27... Re4 {[%clk 0:02:30.8]}
28. g3 {[%clk 0:01:09.5]} 28... Nh5 {[%clk 0:02:29.5]} 29. Ng2 {[%clk
0:01:08.6]} 29... Nf6 {[%clk 0:02:28.7]} 30. Re2 {[%clk 0:01:05]} 30... Rxe2
{[%clk 0:02:18.8]} 31. Kxe2 {[%clk 0:01:04.5]} 31... Kf8 {[%clk 0:02:19.7]} 32.
Ne3 {[%clk 0:00:51.1]} 32... g6 {[%clk 0:02:16.6]} 33. a3 {[%clk 0:00:48.5]}
33... Ke7 {[%clk 0:02:16.5]} 34. Ne5 {[%clk 0:00:45.2]} 34... Ke6 {[%clk
0:02:15.3]} 35. f4 {[%clk 0:00:42.9]} 35... h5 {[%clk 0:02:14.9]} 36. Kf3 {[%clk
0:00:40.6]} 36... Ne4 {[%clk 0:02:14]} 37. g4 {[%clk 0:00:36]} 37... hxg4+
{[%clk 0:02:13.4]} 38. N3xg4 {[%clk 0:00:34.8]} 38... Be7 {[%clk 0:02:07]} 39.
Nh6 {[%clk 0:00:28.1]} 39... Nd6 {[%clk 0:02:05.2]} 40. Kg4 {[%clk 0:00:26.1]}
40... Bf8 {[%clk 0:01:54.5]} 41. Ng8 {[%clk 0:00:24.3]} 41... Ne4 {[%clk
0:01:50.6]} 42. h5 {[%clk 0:00:20.4]} 42... gxh5+ {[%clk 0:01:44.2]} 43. Kxh5
{[%clk 0:00:21.3]} 43... f6 {[%clk 0:01:44.4]} 44. Nc6 {[%clk 0:00:19.4]} 44...
Kf7 {[%clk 0:01:14.2]} 45. Nh6+ {[%clk 0:00:19.1]} 45... Bxh6 {[%clk 0:01:14.2]}
46. Kxh6 {[%clk 0:00:19.4]} 46... Nf2 {[%clk 0:01:13.5]} 47. Nb4 {[%clk
0:00:16]} 47... Nd3 {[%clk 0:01:13.6]} 48. Nxa6 {[%clk 0:00:15.2]} 48... Nxf4
{[%clk 0:00:58.9]} 49. Nc7 {[%clk 0:00:16.1]} 49... Nd3 {[%clk 0:00:58.3]} 50.
Nxb5 {[%clk 0:00:15.4]} 50... Ke6 {[%clk 0:00:37.6]} 51. a4 {[%clk 0:00:15.4]}
51... Kd7 {[%clk 0:00:32]} 52. a5 {[%clk 0:00:15.3]} 52... Kc6 {[%clk
0:00:32.6]} 53. a6 {[%clk 0:00:15.2]} 53... Nxb2 {[%clk 0:00:33.1]} 54. Kg6
{[%clk 0:00:14.4]} 54... Na4 {[%clk 0:00:33.6]} 55. a7 {[%clk 0:00:14.2]} 55...
Nb6 {[%clk 0:00:32.9]} 56. Na3 {[%clk 0:00:13.1]} 56... Kb7 {[%clk 0:00:29.6]}
57. Kxf6 {[%clk 0:00:13.3]} 57... Kxa7 {[%clk 0:00:30.1]} 58. Ke6 {[%clk
0:00:13.6]} 58... Ka6 {[%clk 0:00:26.9]} 59. Kd6 {[%clk 0:00:12.5]} 59... Ka5
{[%clk 0:00:27]} 60. Kc6 {[%clk 0:00:12.5]} 60... Ka4 {[%clk 0:00:19.5]} 61. Nb5
{[%clk 0:00:11.1]} 61... Ka5 {[%clk 0:00:19.2]} 62. Nc7 {[%clk 0:00:10.9]} 62...
Na4 {[%clk 0:00:07.6]} 63. Nxd5 {[%clk 0:00:10.9]} 63... Nb2 {[%clk 0:00:08.2]}
64. Kc5 {[%clk 0:00:11]} 64... Ka4 {[%clk 0:00:08.6]} 65. Ne3 {[%clk 0:00:09.8]}
65... Kb3 {[%clk 0:00:08.7]} 66. d5 {[%clk 0:00:10.4]} 66... Kxc3 {[%clk
0:00:07.4]} 67. d6 {[%clk 0:00:10.8]} 67... Nd3+ {[%clk 0:00:08]} 68. Kb5 {[%clk
0:00:10.5]} 68... Ne5 {[%clk 0:00:07.6]} 69. Nxc4 {[%clk 0:00:10.3]} 69... Nxc4
{[%clk 0:00:08.5]} 70. d7 {[%clk 0:00:10.4]} 70... Nd6+ {[%clk 0:00:09.1]} 71.
Kc6 {[%clk 0:00:10.4]} 71... Nf7 {[%clk 0:00:10]} 72. Kd5 {[%clk 0:00:10.5]}
72... Nd8 {[%clk 0:00:09.9]} 73. Kd6 {[%clk 0:00:10.7]} 73... Kd4 {[%clk
0:00:10.8]} 74. Ke7 {[%clk 0:00:11.4]} 74... Nb7 {[%clk 0:00:11]} 75. d8=Q+
{[%clk 0:00:12]} 75... Nxd8 {[%clk 0:00:11.4]} 1/2-1/2

[Event "Early-Titled-Tuesday-Blitz-November-28-2023"]
[Site "Chess.com"]
[Date "2023.11.28"]
[Round "2"]
[White "rynos0411"]
[Black "liczner"]
[Result "1/2-1/2"]
[WhiteElo "2512"]
[BlackElo "2890"]
[TimeControl "180+1"]
[EndTime "8:19:25 PST"]
[Termination "Game drawn by repetition"]

1. d4 {[%clk 0:02:25.3]} 1... Nf6 {[%clk 0:02:42.1]} 2. c4 {[%clk 0:02:18.2]}
2... g6 {[%clk 0:02:31.7]} 3. Nc3 {[%clk 0:02:17.5]} 3... d5 {[%clk 0:02:32.2]}
4. cxd5 {[%clk 0:02:16.6]} 4... Nxd5 {[%clk 0:02:33.1]} 5. Na4 {[%clk
0:02:16.5]} 5... Bg7 {[%clk 0:02:32.2]} 6. e4 {[%clk 0:02:16.4]} 6... Nb6 {[%clk
0:02:32.7]} 7. Be3 {[%clk 0:02:17.3]} 7... O-O {[%clk 0:02:32.4]} 8. Nf3 {[%clk
0:02:14.4]} 8... Bg4 {[%clk 0:02:29.9]} 9. Be2 {[%clk 0:02:12.4]} 9... Nc6
{[%clk 0:02:27.4]} 10. d5 {[%clk 0:02:11.1]} 10... Nxa4 {[%clk 0:02:23.4]} 11.
Qxa4 {[%clk 0:02:12]} 11... Bxb2 {[%clk 0:02:23.3]} 12. Rb1 {[%clk 0:02:11.5]}
12... Bc3+ {[%clk 0:02:23.4]} 13. Kf1 {[%clk 0:02:11.4]} 13... Nb8 {[%clk
0:01:53.1]} 14. Rxb7 {[%clk 0:02:08.6]} 14... Nd7 {[%clk 0:01:50.5]} 15. h3
{[%clk 0:01:58.5]} 15... Bxf3 {[%clk 0:01:49.8]} 16. gxf3 {[%clk 0:01:55.6]}
16... Bg7 {[%clk 0:01:40.6]} 17. Rxa7 {[%clk 0:01:52]} 17... Rxa7 {[%clk
0:01:20.8]} 18. Qxa7 {[%clk 0:01:52.9]} 18... f5 {[%clk 0:01:19.7]} 19. Kg2
{[%clk 0:01:48.6]} 19... fxe4 {[%clk 0:01:09.6]} 20. fxe4 {[%clk 0:01:45.4]}
20... Be5 {[%clk 0:01:10.1]} 21. Bg4 {[%clk 0:01:33.6]} 21... Kh8 {[%clk
0:00:58.4]} 22. Bd4 {[%clk 0:01:30.8]} 22... Bxd4 {[%clk 0:00:55.5]} 23. Qxd4+
{[%clk 0:01:31.7]} 23... Nf6 {[%clk 0:00:55.5]} 24. Qe5 {[%clk 0:01:22.6]} 24...
Qd6 {[%clk 0:00:49.6]} 25. Qc3 {[%clk 0:01:10.7]} 25... Ra8 {[%clk 0:00:41.6]}
26. Ra1 {[%clk 0:01:01.8]} 26... Ra3 {[%clk 0:00:35.4]} 27. Qb2 {[%clk 0:01:00]}
27... h5 {[%clk 0:00:29.2]} 28. Be6 {[%clk 0:00:58.5]} 28... Qa6 {[%clk
0:00:20.2]} 29. Qb8+ {[%clk 0:00:54.2]} 29... Kg7 {[%clk 0:00:18.9]} 30. Qxc7
{[%clk 0:00:53.7]} 30... Qa7 {[%clk 0:00:10.6]} 31. Qxa7 {[%clk 0:00:49.6]}
31... Rxa7 {[%clk 0:00:11.5]} 32. e5 {[%clk 0:00:49.2]} 32... Ne4 {[%clk
0:00:12.1]} 33. a4 {[%clk 0:00:45.3]} 33... Nc5 {[%clk 0:00:11.7]} 34. a5 {[%clk
0:00:38.6]} 34... Nb3 {[%clk 0:00:10.5]} 35. Rb1 {[%clk 0:00:37.2]} 35... Nxa5
{[%clk 0:00:10.5]} 36. Ra1 {[%clk 0:00:37.2]} 36... g5 {[%clk 0:00:04.5]} 37. h4
{[%clk 0:00:36.5]} 37... gxh4 {[%clk 0:00:04]} 38. Kh3 {[%clk 0:00:36.6]} 38...
Kh6 {[%clk 0:00:02.3]} 39. Kxh4 {[%clk 0:00:36.3]} 39... Nc6 {[%clk 0:00:03]}
40. Rxa7 {[%clk 0:00:33.1]} 40... Nxa7 {[%clk 0:00:03.2]} 41. Bf7 {[%clk
0:00:34]} 41... Nb5 {[%clk 0:00:02.8]} 42. Bxh5 {[%clk 0:00:32.8]} 42... Nd4
{[%clk 0:00:01.7]} 43. Bd1 {[%clk 0:00:28.4]} 43... Nf5+ {[%clk 0:00:01.4]} 44.
Kg4 {[%clk 0:00:28.3]} 44... Nd4 {[%clk 0:00:02]} 45. Kf4 {[%clk 0:00:25.8]}
45... Kg7 {[%clk 0:00:02.4]} 46. Ke4 {[%clk 0:00:25.4]} 46... Nb5 {[%clk
0:00:03.1]} 47. Bb3 {[%clk 0:00:13.7]} 47... Kf8 {[%clk 0:00:02.6]} 48. f4
{[%clk 0:00:12.3]} 48... Nc3+ {[%clk 0:00:02.7]} 49. Kd4 {[%clk 0:00:12.1]}
49... Ne2+ {[%clk 0:00:03.3]} 50. Ke3 {[%clk 0:00:12.5]} 50... Ng3 {[%clk
0:00:03.5]} 51. Bc2 {[%clk 0:00:11.6]} 51... Nf1+ {[%clk 0:00:02.2]} 52. Kd4
{[%clk 0:00:10.8]} 52... Nd2 {[%clk 0:00:02.1]} 53. f5 {[%clk 0:00:10.3]} 53...
Nf3+ {[%clk 0:00:02.8]} 54. Ke4 {[%clk 0:00:10.6]} 54... Nd2+ {[%clk 0:00:03.5]}
55. Ke3 {[%clk 0:00:09.6]} 55... Nc4+ {[%clk 0:00:03.3]} 56. Kd4 {[%clk
0:00:09.6]} 56... Nd2 {[%clk 0:00:04.2]} 57. Kc5 {[%clk 0:00:09.2]} 57... Nf3
{[%clk 0:00:03.6]} 58. e6 {[%clk 0:00:05]} 58... Ng5 {[%clk 0:00:02.2]} 59. d6
{[%clk 0:00:04.4]} 59... Ke8 {[%clk 0:00:02.4]} 60. dxe7 {[%clk 0:00:01.7]}
60... Kxe7 {[%clk 0:00:02.5]} 61. Kd4 {[%clk 0:00:02.2]} 61... Nh7 {[%clk
0:00:02.8]} 62. Ke5 {[%clk 0:00:02.6]} 62... Nf6 {[%clk 0:00:03.2]} 63. Bd3
{[%clk 0:00:03.5]} 63... Ng4+ {[%clk 0:00:03.5]} 64. Kf4 {[%clk 0:00:03.4]}
64... Nf6 {[%clk 0:00:04.4]} 65. Be2 {[%clk 0:00:03.8]} 65... Nd5+ {[%clk
0:00:04.5]} 66. Ke5 {[%clk 0:00:03.3]} 66... Nf6 {[%clk 0:00:05.4]} 67. Bf3
{[%clk 0:00:02.7]} 67... Ne8 {[%clk 0:00:05.6]} 68. Bh5 {[%clk 0:00:02.7]} 68...
Nf6 {[%clk 0:00:06.5]} 69. Bf3 {[%clk 0:00:03.4]} 69... Ng8 {[%clk 0:00:06.2]}
70. Bc6 {[%clk 0:00:04.3]} 70... Nf6 {[%clk 0:00:07]} 71. Bf3 {[%clk 0:00:04.2]}
1/2-1/2

[Event "Early-Titled-Tuesday-Blitz-November-28-2023"]
[Site "Chess.com"]
[Date "2023.11.28"]
[Round "2"]
[White "doublesik"]
[Black "GMKrikor"]
[Result "0-1"]
[WhiteElo "2533"]
[BlackElo "2786"]
[TimeControl "180+1"]
[EndTime "8:19:27 PST"]
[Termination "GMKrikor won by resignation"]

1. d4 {[%clk 0:03:00]} 1... Nf6 {[%clk 0:02:57.8]} 2. c4 {[%clk 0:03:00.1]} 2...
g6 {[%clk 0:02:52.6]} 3. Nc3 {[%clk 0:03:00]} 3... d5 {[%clk 0:02:50.4]} 4. cxd5
{[%clk 0:03:00.8]} 4... Nxd5 {[%clk 0:02:49.6]} 5. e4 {[%clk 0:03:01.5]} 5...
Nxc3 {[%clk 0:02:49.5]} 6. bxc3 {[%clk 0:03:02.4]} 6... Bg7 {[%clk 0:02:48.6]}
7. Bc4 {[%clk 0:03:03.1]} 7... c5 {[%clk 0:02:48.4]} 8. Ne2 {[%clk 0:03:03.7]}
8... O-O {[%clk 0:02:47.9]} 9. O-O {[%clk 0:03:04.2]} 9... Nc6 {[%clk
0:02:48.3]} 10. Be3 {[%clk 0:03:04.7]} 10... Bg4 {[%clk 0:02:48.2]} 11. f3
{[%clk 0:03:05]} 11... Bd7 {[%clk 0:02:47.8]} 12. Qd2 {[%clk 0:03:03.2]} 12...
Qa5 {[%clk 0:02:47.6]} 13. dxc5 {[%clk 0:02:46.8]} 13... Rad8 {[%clk 0:02:41]}
14. Qb2 {[%clk 0:02:40.6]} 14... Qc7 {[%clk 0:02:40.4]} 15. Rfd1 {[%clk
0:02:33.3]} 15... Na5 {[%clk 0:02:32.7]} 16. Bb5 {[%clk 0:02:24.9]} 16... Bc8
{[%clk 0:02:14.6]} 17. Bd4 {[%clk 0:02:12.1]} 17... e5 {[%clk 0:02:01.3]} 18.
Bf2 {[%clk 0:02:11.1]} 18... Be6 {[%clk 0:02:02.1]} 19. Qb4 {[%clk 0:01:53.9]}
19... Rxd1+ {[%clk 0:01:36.8]} 20. Rxd1 {[%clk 0:01:54.8]} 20... Rc8 {[%clk
0:01:37.2]} 21. Nc1 {[%clk 0:01:33.9]} 21... Bf8 {[%clk 0:01:31.2]} 22. Nd3
{[%clk 0:01:29.2]} 22... f6 {[%clk 0:01:14.3]} 23. Ba4 {[%clk 0:01:08.6]} 23...
Bxa2 {[%clk 0:01:08.3]} 24. Bc2 {[%clk 0:00:36.2]} 24... Bc4 {[%clk 0:01:05.3]}
25. Ra1 {[%clk 0:00:32.7]} 25... Bxd3 {[%clk 0:00:41.2]} 26. Bxd3 {[%clk
0:00:33.6]} 26... Nc6 {[%clk 0:00:34.2]} 27. Qb3+ {[%clk 0:00:26.2]} 27... Kg7
{[%clk 0:00:33.8]} 28. Rb1 {[%clk 0:00:16.6]} 28... Nd8 {[%clk 0:00:33.4]} 29.
Rd1 {[%clk 0:00:08.8]} 29... Bxc5 {[%clk 0:00:33.3]} 30. Bb5 {[%clk 0:00:07.5]}
30... Bxf2+ {[%clk 0:00:31.5]} 31. Kxf2 {[%clk 0:00:08.4]} 31... Nc6 {[%clk
0:00:18.6]} 32. Qe6 {[%clk 0:00:07.5]} 32... Rd8 {[%clk 0:00:17.6]} 33. Rxd8
{[%clk 0:00:05.1]} 33... Nxd8 {[%clk 0:00:17.1]} 34. Qd5 {[%clk 0:00:04.7]}
34... Nc6 {[%clk 0:00:12.8]} 35. Bc4 {[%clk 0:00:05.2]} 35... Kh6 {[%clk
0:00:11.9]} 36. h4 {[%clk 0:00:05.2]} 36... Qe7 {[%clk 0:00:02.8]} 37. Qg8
{[%clk 0:00:05.2]} 37... Qg7 {[%clk 0:00:02.3]} 38. Qd5 {[%clk 0:00:04.9]} 38...
Qf8 {[%clk 0:00:01.8]} 39. Qd2+ {[%clk 0:00:05.3]} 39... Kg7 {[%clk 0:00:02.2]}
40. Qd7+ {[%clk 0:00:06]} 40... Qe7 {[%clk 0:00:02.7]} 41. Qd5 {[%clk
0:00:06.4]} 41... Qf8 {[%clk 0:00:02.5]} 42. Qd7+ {[%clk 0:00:06.4]} 42... Qe7
{[%clk 0:00:02.7]} 43. Qd5 {[%clk 0:00:06.9]} 43... Nd8 {[%clk 0:00:01.6]} 44.
Qg8+ {[%clk 0:00:06.7]} 44... Kh6 {[%clk 0:00:02.4]} 45. g4 {[%clk 0:00:07.1]}
45... g5 {[%clk 0:00:02.5]} 46. hxg5+ {[%clk 0:00:07.2]} 46... fxg5 {[%clk
0:00:03.4]} 47. Qd5 {[%clk 0:00:07.6]} 47... Kg7 {[%clk 0:00:03.4]} 48. Kg3
{[%clk 0:00:08]} 48... a6 {[%clk 0:00:02.4]} 49. Bb3 {[%clk 0:00:08.1]} 49...
Kh6 {[%clk 0:00:02.6]} 50. c4 {[%clk 0:00:08.6]} 50... Nc6 {[%clk 0:00:02.9]}
51. c5 {[%clk 0:00:09]} 51... Nd4 {[%clk 0:00:03.6]} 52. Bc4 {[%clk 0:00:09.2]}
52... a5 {[%clk 0:00:03.2]} 53. Qd6+ {[%clk 0:00:09.1]} 53... Qxd6 {[%clk
0:00:02.9]} 54. cxd6 {[%clk 0:00:10]} 54... Kg7 {[%clk 0:00:02.4]} 55. Bd5
{[%clk 0:00:10.2]} 55... Kf8 {[%clk 0:00:02.4]} 56. Bxb7 {[%clk 0:00:10.3]}
56... a4 {[%clk 0:00:03]} 57. Bd5 {[%clk 0:00:11]} 57... a3 {[%clk 0:00:03.5]}
58. Ba2 {[%clk 0:00:11.3]} 58... Nb5 {[%clk 0:00:03.6]} 59. Kf2 {[%clk
0:00:11.7]} 59... Nc3 {[%clk 0:00:02.5]} 60. Bb3 {[%clk 0:00:12.4]} 60... a2
{[%clk 0:00:02.8]} 61. Bxa2 {[%clk 0:00:13.1]} 61... Nxa2 {[%clk 0:00:03.7]} 62.
Ke3 {[%clk 0:00:13.8]} 62... Nb4 {[%clk 0:00:02.2]} 63. Kd2 {[%clk 0:00:13.9]}
63... Nc6 {[%clk 0:00:02.3]} 64. Kc3 {[%clk 0:00:14.8]} 64... Nd4 {[%clk
0:00:03]} 65. Kc4 {[%clk 0:00:15.2]} 65... Nxf3 {[%clk 0:00:02.7]} 66. Kd5
{[%clk 0:00:16.1]} 66... Ke8 {[%clk 0:00:02.7]} 67. Ke6 {[%clk 0:00:16.1]} 67...
h6 {[%clk 0:00:02.8]} 68. Kf5 {[%clk 0:00:16.2]} 68... Kd7 {[%clk 0:00:03.3]}
69. Kf6 {[%clk 0:00:16.7]} 69... Kxd6 {[%clk 0:00:03.7]} 70. Kg6 {[%clk
0:00:17.6]} 70... Nh2 {[%clk 0:00:03.2]} 71. Kxh6 {[%clk 0:00:18.5]} 71... Nxg4+
{[%clk 0:00:03.5]} 72. Kxg5 {[%clk 0:00:19.4]} 72... Nf2 {[%clk 0:00:04.1]} 73.
Kf5 {[%clk 0:00:20.1]} 73... Nd3 {[%clk 0:00:03.5]} 74. Kg4 {[%clk 0:00:20.4]}
74... Nc5 {[%clk 0:00:03.9]} 75. Kf5 {[%clk 0:00:21.3]} 75... Nd7 {[%clk
0:00:03.9]} 76. Kg4 {[%clk 0:00:21.5]} 76... Ke6 {[%clk 0:00:04.8]} 77. Kg5
{[%clk 0:00:21.7]} 77... Nf6 {[%clk 0:00:05.6]} 78. Kg6 {[%clk 0:00:21.7]} 78...
Nxe4 {[%clk 0:00:06.1]} 79. Kh5 {[%clk 0:00:22.6]} 79... Kf5 {[%clk 0:00:06.5]}
80. Kh4 {[%clk 0:00:22.9]} 80... Kf4 {[%clk 0:00:06.9]} 81. Kh3 {[%clk
0:00:23.4]} 81... Kf3 {[%clk 0:00:07.6]} 82. Kh4 {[%clk 0:00:24.3]} 82... Nd6
{[%clk 0:00:06.5]} 83. Kh5 {[%clk 0:00:25.2]} 83... e4 {[%clk 0:00:07.4]} 0-1